[Event "Early-Titled-Tuesday-Blitz-May-07-2024"]
[Site "Chess.com"]
[Date "2024.05.07"]
[Round "11"]
[White "Kirill_Klukin"]
[Black "SharapovEvgeny"]
[Result "1-0"]
[WhiteElo "2847"]
[BlackElo "2649"]
[TimeControl "180+1"]
[EndTime "10:15:32 PDT"]
[Termination "Kirill_Klukin won by resignation"]

1. Nf3 {[%clk 0:03:00.9]} 1... c5 {[%clk 0:02:59.4]} 2. e3 {[%clk 0:03:01]} 2...
d5 {[%clk 0:02:58.4]} 3. b3 {[%clk 0:03:00.8]} 3... Nc6 {[%clk 0:02:58.1]} 4.
Bb2 {[%clk 0:03:01.2]} 4... Nf6 {[%clk 0:02:57.9]} 5. Be2 {[%clk 0:02:58.1]}
5... g6 {[%clk 0:02:57.9]} 6. O-O {[%clk 0:02:53]} 6... Bg7 {[%clk 0:02:57.6]}
7. Ne5 {[%clk 0:02:47.3]} 7... Nxe5 {[%clk 0:02:56.5]} 8. Bxe5 {[%clk
0:02:48.2]} 8... O-O {[%clk 0:02:55.8]} 9. f4 {[%clk 0:02:47.8]} 9... Ne8 {[%clk
0:02:43.1]} 10. Nc3 {[%clk 0:02:41]} 10... f6 {[%clk 0:02:41.6]} 11. Nxd5 {[%clk
0:02:31.7]} 11... fxe5 {[%clk 0:02:35.8]} 12. fxe5 {[%clk 0:02:30]} 12... Rxf1+
{[%clk 0:02:27.8]} 13. Qxf1 {[%clk 0:02:29.4]} 13... Bxe5 {[%clk 0:02:24.6]} 14.
Bc4 {[%clk 0:02:20.8]} 14... e6 {[%clk 0:02:21.1]} 15. Nc3 {[%clk 0:01:09.5]}
15... Bxc3 {[%clk 0:02:17.7]} 16. dxc3 {[%clk 0:01:09.6]} 16... Qe7 {[%clk
0:02:09.5]} 17. Qf4 {[%clk 0:00:56]} 17... Ng7 {[%clk 0:01:57.7]} 18. Rf1 {[%clk
0:00:46.4]} 18... b6 {[%clk 0:01:49.4]} 19. Qe5 {[%clk 0:00:34.1]} 19... Bb7
{[%clk 0:01:44.6]} 20. Rf6 {[%clk 0:00:33.9]} 20... Re8 {[%clk 0:01:43.2]} 21.
Bb5 {[%clk 0:00:30.9]} 21... Rf8 {[%clk 0:01:39.1]} 22. Rxf8+ {[%clk 0:00:29.6]}
22... Qxf8 {[%clk 0:01:31.1]} 23. Bc4 {[%clk 0:00:29.7]} 23... Qe8 {[%clk
0:01:22.5]} 24. e4 {[%clk 0:00:26.8]} 24... Qc6 {[%clk 0:01:14]} 25. Bd3 {[%clk
0:00:23.9]} 25... a6 {[%clk 0:01:10.2]} 26. a4 {[%clk 0:00:23.8]} 26... h5
{[%clk 0:01:05.4]} 27. Qf6 {[%clk 0:00:20.2]} 27... Kh7 {[%clk 0:01:04.3]} 28.
Qe7 {[%clk 0:00:17.5]} 28... b5 {[%clk 0:00:57.7]} 29. axb5 {[%clk 0:00:17.7]}
29... axb5 {[%clk 0:00:57.9]} 30. c4 {[%clk 0:00:17.7]} 30... bxc4 {[%clk
0:00:56.7]} 31. bxc4 {[%clk 0:00:18.6]} 31... Ba8 {[%clk 0:00:45.8]} 32. h3
{[%clk 0:00:18.7]} 32... Kh6 {[%clk 0:00:37.6]} 33. Qf8 {[%clk 0:00:17.8]} 33...
Kh7 {[%clk 0:00:30.3]} 34. Qe7 {[%clk 0:00:17.3]} 34... Qb7 {[%clk 0:00:28.5]}
35. Qxc5 {[%clk 0:00:17.3]} 35... h4 {[%clk 0:00:24.3]} 36. Qg5 {[%clk
0:00:11.9]} 36... Nh5 {[%clk 0:00:20]} 37. Qxh4 {[%clk 0:00:11.1]} 37... Qa7+
{[%clk 0:00:18.1]} 38. Kh2 {[%clk 0:00:08.9]} 38... Qc7+ {[%clk 0:00:17.3]} 39.
Kg1 {[%clk 0:00:09.4]} 39... Qf4 {[%clk 0:00:13.9]} 40. Qe7+ {[%clk 0:00:03]}
40... Kh6 {[%clk 0:00:13.7]} 41. Qd8 {[%clk 0:00:03.5]} 41... Qe3+ {[%clk
0:00:11.5]} 42. Kh2 {[%clk 0:00:02.9]} 42... Bxe4 {[%clk 0:00:10.5]} 43. Qh8+
{[%clk 0:00:02.5]} 43... Kg5 {[%clk 0:00:10.7]} 44. Qe5+ {[%clk 0:00:03.1]}
44... Kh6 {[%clk 0:00:08.5]} 45. Qxe4 {[%clk 0:00:03.6]} 45... Qxe4 {[%clk
0:00:08.5]} 46. Bxe4 {[%clk 0:00:04.5]} 46... Nf6 {[%clk 0:00:08.5]} 47. Bf3
{[%clk 0:00:04.5]} 47... Nd7 {[%clk 0:00:08.6]} 48. Kg3 {[%clk 0:00:04.4]} 48...
e5 {[%clk 0:00:08.9]} 49. Bg4 {[%clk 0:00:03.3]} 49... Nc5 {[%clk 0:00:08.9]}
50. Kf3 {[%clk 0:00:04.1]} 50... Kg5 {[%clk 0:00:09.2]} 51. Ke3 {[%clk
0:00:04.8]} 51... Kh4 {[%clk 0:00:09.4]} 52. Bf3 {[%clk 0:00:05.3]} 52... Kg3
{[%clk 0:00:09.4]} 53. Bd5 {[%clk 0:00:06.1]} 53... g5 {[%clk 0:00:09.5]} 54.
Bf3 {[%clk 0:00:06]} 54... Kh4 {[%clk 0:00:08.8]} 55. Kf2 {[%clk 0:00:04.5]}
55... g4 {[%clk 0:00:09.1]} 56. Bxg4 {[%clk 0:00:05]} 56... Kg5 {[%clk
0:00:07.7]} 57. Ke3 {[%clk 0:00:05.7]} 57... Kh4 {[%clk 0:00:07.8]} 58. Kf3
{[%clk 0:00:06.1]} 58... e4+ {[%clk 0:00:07.8]} 59. Kf4 {[%clk 0:00:06.7]} 59...
Ne6+ {[%clk 0:00:06.2]} 60. Bxe6 {[%clk 0:00:06.8]} 60... e3 {[%clk 0:00:06.8]}
61. g3+ {[%clk 0:00:07.3]} 61... Kh5 {[%clk 0:00:05.7]} 62. Kxe3 {[%clk
0:00:07.9]} 1-0

[Event "Early-Titled-Tuesday-Blitz-May-07-2024"]
[Site "Chess.com"]
[Date "2024.05.07"]
[Round "11"]
[White "Artemiki"]
[Black "Caroexpert"]
[Result "1-0"]
[WhiteElo "2524"]
[BlackElo "2666"]
[TimeControl "180+1"]
[EndTime "10:15:33 PDT"]
[Termination "Artemiki won by checkmate"]

1. e4 {[%clk 0:03:00.9]} 1... c6 {[%clk 0:02:59.9]} 2. Nf3 {[%clk 0:02:56]} 2...
d5 {[%clk 0:02:59.8]} 3. d3 {[%clk 0:02:56.9]} 3... Bg4 {[%clk 0:02:57.4]} 4.
Be2 {[%clk 0:02:49.9]} 4... dxe4 {[%clk 0:02:37.5]} 5. dxe4 {[%clk 0:02:45.9]}
5... Qc7 {[%clk 0:02:37.8]} 6. O-O {[%clk 0:02:40.1]} 6... e5 {[%clk 0:02:37.7]}
7. Be3 {[%clk 0:02:35.8]} 7... Nf6 {[%clk 0:02:35.2]} 8. Nbd2 {[%clk 0:02:32.2]}
8... Nbd7 {[%clk 0:02:35]} 9. c3 {[%clk 0:02:31.5]} 9... Bc5 {[%clk 0:02:34.2]}
10. Bxc5 {[%clk 0:02:29.4]} 10... Nxc5 {[%clk 0:02:35.1]} 11. Qc2 {[%clk
0:02:23]} 11... O-O {[%clk 0:02:27.5]} 12. h3 {[%clk 0:02:17.1]} 12... Bxf3
{[%clk 0:02:27]} 13. Bxf3 {[%clk 0:02:18]} 13... Rad8 {[%clk 0:02:26.4]} 14. b4
{[%clk 0:02:06.5]} 14... Ne6 {[%clk 0:02:25.9]} 15. g3 {[%clk 0:02:05.1]} 15...
Ng5 {[%clk 0:02:17.6]} 16. Bg2 {[%clk 0:02:04.4]} 16... Qd7 {[%clk 0:02:15.2]}
17. h4 {[%clk 0:01:58.2]} 17... Nh3+ {[%clk 0:02:04.7]} 18. Bxh3 {[%clk
0:01:44.4]} 18... Qxh3 {[%clk 0:01:57]} 19. Nf3 {[%clk 0:01:44]} 19... Ng4
{[%clk 0:01:50]} 20. Rfd1 {[%clk 0:01:32.6]} 20... Rde8 {[%clk 0:01:46.4]} 21.
Qe2 {[%clk 0:01:28.8]} 21... f5 {[%clk 0:01:44.6]} 22. Qc4+ {[%clk 0:00:54.9]}
22... Kh8 {[%clk 0:01:41.8]} 23. Qf1 {[%clk 0:00:36.8]} 23... Qxf1+ {[%clk
0:01:25.8]} 24. Rxf1 {[%clk 0:00:37.7]} 24... fxe4 {[%clk 0:01:23.9]} 25. Ng5
{[%clk 0:00:37.8]} 25... e3 {[%clk 0:01:19.8]} 26. fxe3 {[%clk 0:00:38.7]} 26...
Nxe3 {[%clk 0:01:16.7]} 27. Rxf8+ {[%clk 0:00:25.7]} 27... Rxf8 {[%clk
0:01:16.5]} 28. Re1 {[%clk 0:00:26]} 28... Nc4 {[%clk 0:01:15.3]} 29. Re4 {[%clk
0:00:20.5]} 29... b5 {[%clk 0:01:14.6]} 30. a4 {[%clk 0:00:18.4]} 30... h6
{[%clk 0:01:12.7]} 31. Ne6 {[%clk 0:00:13.3]} 31... Rf3 {[%clk 0:01:12.5]} 32.
axb5 {[%clk 0:00:11.7]} 32... cxb5 {[%clk 0:01:09.7]} 33. Rg4 {[%clk 0:00:11.5]}
33... e4 {[%clk 0:00:31.7]} 34. Rxe4 {[%clk 0:00:09.1]} 34... Rxg3+ {[%clk
0:00:29.8]} 35. Kh2 {[%clk 0:00:08.1]} 35... Rxc3 {[%clk 0:00:30.1]} 36. Nf8
{[%clk 0:00:07.5]} 36... h5 {[%clk 0:00:23.7]} 37. Re8 {[%clk 0:00:04.8]} 37...
Kg8 {[%clk 0:00:23.8]} 38. Nd7+ {[%clk 0:00:02.5]} 38... Kf7 {[%clk 0:00:23.3]}
39. Ra8 {[%clk 0:00:03.4]} 39... Rc2+ {[%clk 0:00:20.2]} 40. Kg3 {[%clk
0:00:03.7]} 40... Ra2 {[%clk 0:00:16.5]} 41. Kf4 {[%clk 0:00:04.1]} 41... Ke6
{[%clk 0:00:15.6]} 42. Nc5+ {[%clk 0:00:04.1]} 42... Kd5 {[%clk 0:00:14.6]} 43.
Rd8+ {[%clk 0:00:03.9]} 43... Kc6 {[%clk 0:00:13.3]} 44. Rc8+ {[%clk 0:00:03.3]}
44... Kd6 {[%clk 0:00:13.4]} 45. Rd8+ {[%clk 0:00:02]} 45... Ke7 {[%clk
0:00:10.7]} 46. Rd7+ {[%clk 0:00:02.4]} 46... Kf6 {[%clk 0:00:11.1]} 47. Ne4+
{[%clk 0:00:02.7]} 47... Kg6 {[%clk 0:00:11.5]} 48. Rb7 {[%clk 0:00:02.5]} 48...
Re2 {[%clk 0:00:08.7]} 49. Rxa7 {[%clk 0:00:02.3]} 49... Re1 {[%clk 0:00:07.2]}
50. Ra6+ {[%clk 0:00:03.2]} 50... Kh7 {[%clk 0:00:06.9]} 51. Ng5+ {[%clk
0:00:03.3]} 51... Kg8 {[%clk 0:00:05.2]} 52. Ra8+ {[%clk 0:00:04.2]} 52... Re8
{[%clk 0:00:04.8]} 53. Rxe8# {[%clk 0:00:05.1]} 1-0

[Event "Early-Titled-Tuesday-Blitz-May-07-2024"]
[Site "Chess.com"]
[Date "2024.05.07"]
[Round "11"]
[White "FXDon77"]
[Black "viktorskliarov"]
[Result "1-0"]
[WhiteElo "2890"]
[BlackElo "2675"]
[TimeControl "180+1"]
[EndTime "10:15:40 PDT"]
[Termination "FXDon77 won by resignation"]

1. e4 {[%clk 0:02:57.2]} 1... c5 {[%clk 0:03:00.2]} 2. Nf3 {[%clk 0:02:57]} 2...
Nc6 {[%clk 0:03:00.8]} 3. Bb5 {[%clk 0:02:57]} 3... e6 {[%clk 0:03:01.3]} 4. O-O
{[%clk 0:02:56.5]} 4... Nge7 {[%clk 0:03:01.9]} 5. d4 {[%clk 0:02:55.6]} 5...
cxd4 {[%clk 0:03:01.2]} 6. Nxd4 {[%clk 0:02:56.5]} 6... Qb6 {[%clk 0:03:01.7]}
7. Nxc6 {[%clk 0:02:54.4]} 7... dxc6 {[%clk 0:03:02.1]} 8. Be2 {[%clk
0:02:53.1]} 8... e5 {[%clk 0:03:02.4]} 9. Nd2 {[%clk 0:02:50.7]} 9... Ng6 {[%clk
0:03:01.1]} 10. Nc4 {[%clk 0:02:47.8]} 10... Qc7 {[%clk 0:03:00.5]} 11. a4
{[%clk 0:02:46.4]} 11... Be6 {[%clk 0:02:59]} 12. Be3 {[%clk 0:02:45.7]} 12...
Be7 {[%clk 0:02:49.8]} 13. c3 {[%clk 0:02:44.2]} 13... O-O {[%clk 0:02:49.4]}
14. a5 {[%clk 0:02:41.5]} 14... Nf4 {[%clk 0:02:46]} 15. Qc2 {[%clk 0:02:25.7]}
15... Rfd8 {[%clk 0:02:39.4]} 16. Rfd1 {[%clk 0:02:15.7]} 16... Nxe2+ {[%clk
0:02:02.6]} 17. Qxe2 {[%clk 0:02:13.1]} 17... Rxd1+ {[%clk 0:02:02.4]} 18. Rxd1
{[%clk 0:02:11.8]} 18... Rd8 {[%clk 0:01:55.8]} 19. Rxd8+ {[%clk 0:02:08.2]}
19... Qxd8 {[%clk 0:01:52.1]} 20. b4 {[%clk 0:01:58.9]} 20... Bxc4 {[%clk
0:01:28.5]} 21. Qxc4 {[%clk 0:01:57.5]} 21... Qd1+ {[%clk 0:01:28.8]} 22. Qf1
{[%clk 0:01:57.1]} 22... Qc2 {[%clk 0:01:25.1]} 23. Qc1 {[%clk 0:01:47]} 23...
Qxe4 {[%clk 0:01:08.1]} 24. Bxa7 {[%clk 0:01:46.5]} 24... Qd3 {[%clk 0:00:58.3]}
25. h3 {[%clk 0:01:35]} 25... e4 {[%clk 0:00:25.2]} 26. Bd4 {[%clk 0:01:12.8]}
26... Bxb4 {[%clk 0:00:24.6]} 27. Qg5 {[%clk 0:01:10.4]} 27... Bf8 {[%clk
0:00:23.7]} 28. Qe5 {[%clk 0:00:49.6]} 28... h6 {[%clk 0:00:18.6]} 29. Qc7
{[%clk 0:00:47.4]} 29... Qb5 {[%clk 0:00:15.5]} 30. Qc8 {[%clk 0:00:44.5]} 30...
Qxa5 {[%clk 0:00:10.2]} 31. Qxb7 {[%clk 0:00:44.6]} 31... Qb5 {[%clk 0:00:07]}
32. Qc8 {[%clk 0:00:39.5]} 32... Qd5 {[%clk 0:00:06.8]} 33. Qe8 {[%clk
0:00:37.2]} 33... c5 {[%clk 0:00:04.1]} 34. Be3 {[%clk 0:00:30.3]} 34... Qd1+
{[%clk 0:00:04.8]} 35. Kh2 {[%clk 0:00:30.2]} 35... Qd6+ {[%clk 0:00:05.5]} 36.
g3 {[%clk 0:00:30.2]} 36... Qd5 {[%clk 0:00:06.1]} 37. h4 {[%clk 0:00:26.8]}
37... Qd6 {[%clk 0:00:06.2]} 38. Qxe4 {[%clk 0:00:25.9]} 38... Qf6 {[%clk
0:00:05]} 39. c4 {[%clk 0:00:24.6]} 39... Qe6 {[%clk 0:00:05]} 40. Qxe6 {[%clk
0:00:14.4]} 40... fxe6 {[%clk 0:00:05.5]} 41. Kg2 {[%clk 0:00:15.1]} 41... Kf7
{[%clk 0:00:05.9]} 42. Kf3 {[%clk 0:00:15.8]} 42... Ke7 {[%clk 0:00:05.1]} 43.
Ke4 {[%clk 0:00:16.5]} 43... Kd7 {[%clk 0:00:05.4]} 44. h5 {[%clk 0:00:15]}
44... Be7 {[%clk 0:00:05.6]} 45. g4 {[%clk 0:00:12.8]} 45... Bf8 {[%clk
0:00:05.4]} 46. f3 {[%clk 0:00:13]} 46... Be7 {[%clk 0:00:05.8]} 47. Bf4 {[%clk
0:00:13.3]} 47... Bf6 {[%clk 0:00:05]} 48. Be5 {[%clk 0:00:10.9]} 48... Kc6
{[%clk 0:00:04.1]} 49. f4 {[%clk 0:00:09.3]} 49... Kd7 {[%clk 0:00:04.4]} 50. g5
{[%clk 0:00:06.3]} 50... Bxe5 {[%clk 0:00:03.6]} 51. Kxe5 {[%clk 0:00:03.7]}
51... Ke7 {[%clk 0:00:03.9]} 52. gxh6 {[%clk 0:00:02]} 52... gxh6 {[%clk
0:00:04.2]} 53. f5 {[%clk 0:00:02.8]} 53... exf5 {[%clk 0:00:04.8]} 54. Kxf5
{[%clk 0:00:03.6]} 54... Kf7 {[%clk 0:00:05.3]} 55. Ke5 {[%clk 0:00:04.2]} 55...
Ke7 {[%clk 0:00:05.7]} 56. Kd5 {[%clk 0:00:04.9]} 56... Kf6 {[%clk 0:00:06.4]}
57. Kxc5 {[%clk 0:00:05.5]} 57... Kg5 {[%clk 0:00:07.3]} 58. Kd4 {[%clk
0:00:03.5]} 58... Kxh5 {[%clk 0:00:08.2]} 59. c5 {[%clk 0:00:03.8]} 59... Kg4
{[%clk 0:00:06.9]} 60. c6 {[%clk 0:00:04.3]} 60... h5 {[%clk 0:00:07.6]} 61. c7
{[%clk 0:00:04.9]} 61... h4 {[%clk 0:00:08.5]} 62. c8=Q+ {[%clk 0:00:05.5]}
62... Kg3 {[%clk 0:00:09.4]} 63. Qg8+ {[%clk 0:00:05.7]} 1-0

[Event "Early-Titled-Tuesday-Blitz-May-07-2024"]
[Site "Chess.com"]
[Date "2024.05.07"]
[Round "11"]
[White "Kotofeyca"]
[Black "JJDAREK"]
[Result "1/2-1/2"]
[WhiteElo "2511"]
[BlackElo "2401"]
[TimeControl "180+1"]
[EndTime "10:15:52 PDT"]
[Termination "Game drawn - insufficient material"]

1. d4 {[%clk 0:03:00.9]} 1... d6 {[%clk 0:02:59.7]} 2. c4 {[%clk 0:03:00.7]}
2... e5 {[%clk 0:02:58.7]} 3. Nf3 {[%clk 0:02:59.3]} 3... e4 {[%clk 0:02:58.3]}
4. Nfd2 {[%clk 0:02:59.4]} 4... f5 {[%clk 0:02:58.7]} 5. f3 {[%clk 0:02:58.4]}
5... Nf6 {[%clk 0:02:55.7]} 6. Nc3 {[%clk 0:02:50.4]} 6... exf3 {[%clk
0:02:39.4]} 7. exf3 {[%clk 0:02:47.5]} 7... g6 {[%clk 0:02:35.5]} 8. Bd3 {[%clk
0:02:44.3]} 8... Bg7 {[%clk 0:02:35.4]} 9. O-O {[%clk 0:02:43.9]} 9... O-O
{[%clk 0:02:35.5]} 10. Nb3 {[%clk 0:02:37.9]} 10... a5 {[%clk 0:02:30.7]} 11.
Be3 {[%clk 0:02:29.2]} 11... Re8 {[%clk 0:02:30]} 12. Bf2 {[%clk 0:02:28.9]}
12... Nc6 {[%clk 0:02:23.2]} 13. d5 {[%clk 0:02:13.1]} 13... Ne5 {[%clk
0:02:14.9]} 14. Be2 {[%clk 0:02:11.3]} 14... a4 {[%clk 0:02:11.1]} 15. Nd4
{[%clk 0:02:11.1]} 15... a3 {[%clk 0:02:10.8]} 16. b3 {[%clk 0:02:10.4]} 16...
Bd7 {[%clk 0:01:53.2]} 17. Qd2 {[%clk 0:02:10.3]} 17... Nf7 {[%clk 0:01:42.2]}
18. Rae1 {[%clk 0:02:02.1]} 18... Bh6 {[%clk 0:01:40.5]} 19. Qc2 {[%clk
0:01:55.1]} 19... c6 {[%clk 0:01:31.3]} 20. dxc6 {[%clk 0:01:50.7]} 20... bxc6
{[%clk 0:01:32.2]} 21. Rd1 {[%clk 0:01:41.7]} 21... Qa5 {[%clk 0:01:25.5]} 22.
Rfe1 {[%clk 0:01:34.9]} 22... Re7 {[%clk 0:01:19.5]} 23. Bf1 {[%clk 0:01:32.3]}
23... Rae8 {[%clk 0:01:19.6]} 24. Rxe7 {[%clk 0:01:31.9]} 24... Rxe7 {[%clk
0:01:20.5]} 25. Nde2 {[%clk 0:01:14.2]} 25... d5 {[%clk 0:01:16]} 26. cxd5
{[%clk 0:01:10.9]} 26... cxd5 {[%clk 0:01:16.9]} 27. Nd4 {[%clk 0:00:44.9]}
27... Be3 {[%clk 0:01:10.2]} 28. Bxe3 {[%clk 0:00:39.6]} 28... Rxe3 {[%clk
0:01:11.1]} 29. Ncb5 {[%clk 0:00:37.4]} 29... Qb6 {[%clk 0:00:58.2]} 30. Qc1
{[%clk 0:00:35.4]} 30... Re8 {[%clk 0:00:53.2]} 31. Qxa3 {[%clk 0:00:33.2]}
31... Bxb5 {[%clk 0:00:51.8]} 32. Bxb5 {[%clk 0:00:32.4]} 32... Rc8 {[%clk
0:00:42.1]} 33. Qe7 {[%clk 0:00:27.2]} 33... Rc7 {[%clk 0:00:25.9]} 34. Qe3
{[%clk 0:00:23.5]} 34... Nd6 {[%clk 0:00:18.8]} 35. a4 {[%clk 0:00:22.4]} 35...
Nxb5 {[%clk 0:00:16.3]} 36. axb5 {[%clk 0:00:22]} 36... Kf7 {[%clk 0:00:15.2]}
37. Re1 {[%clk 0:00:18.6]} 37... Qd6 {[%clk 0:00:13.5]} 38. h4 {[%clk
0:00:17.1]} 38... h5 {[%clk 0:00:12.4]} 39. Qh6 {[%clk 0:00:16.1]} 39... Qc5
{[%clk 0:00:08]} 40. Qe3 {[%clk 0:00:14.1]} 40... Qd6 {[%clk 0:00:06.4]} 41. Kh1
{[%clk 0:00:14]} 41... Re7 {[%clk 0:00:03.5]} 42. Qxe7+ {[%clk 0:00:13.9]} 42...
Qxe7 {[%clk 0:00:04.4]} 43. Rxe7+ {[%clk 0:00:13.7]} 43... Kxe7 {[%clk
0:00:05.3]} 44. b6 {[%clk 0:00:13.9]} 44... Nd7 {[%clk 0:00:04]} 45. b7 {[%clk
0:00:12.8]} 45... Kd6 {[%clk 0:00:04.5]} 46. b4 {[%clk 0:00:10.8]} 46... Kc7
{[%clk 0:00:04.5]} 47. Ne6+ {[%clk 0:00:10.9]} 47... Kxb7 {[%clk 0:00:04.4]} 48.
Nf4 {[%clk 0:00:11.3]} 48... Kc6 {[%clk 0:00:04.2]} 49. Kh2 {[%clk 0:00:11.4]}
49... Nf8 {[%clk 0:00:02]} 50. Kg3 {[%clk 0:00:10.4]} 50... d4 {[%clk
0:00:02.4]} 51. Kf2 {[%clk 0:00:09.8]} 51... Kb5 {[%clk 0:00:02.7]} 52. Nd3
{[%clk 0:00:10.3]} 52... Kc4 {[%clk 0:00:02.7]} 53. Ke2 {[%clk 0:00:10.9]} 53...
Ne6 {[%clk 0:00:03]} 54. Ne5+ {[%clk 0:00:10.6]} 54... Kxb4 {[%clk 0:00:02.6]}
55. Nxg6 {[%clk 0:00:11.5]} 55... Kc3 {[%clk 0:00:02.9]} 56. Ne5 {[%clk
0:00:10.8]} 56... Nc5 {[%clk 0:00:02.5]} 57. g3 {[%clk 0:00:09.5]} 57... d3+
{[%clk 0:00:02.9]} 58. Nxd3 {[%clk 0:00:09]} 58... Nxd3 {[%clk 0:00:02.9]} 59.
Ke3 {[%clk 0:00:09.9]} 59... f4+ {[%clk 0:00:02.4]} 60. gxf4 {[%clk 0:00:09.6]}
60... Kc4 {[%clk 0:00:02.1]} 61. Ke4 {[%clk 0:00:09]} 61... Ne1 {[%clk
0:00:02.5]} 62. f5 {[%clk 0:00:09.1]} 62... Kc5 {[%clk 0:00:02.5]} 63. f6 {[%clk
0:00:08.4]} 63... Kd6 {[%clk 0:00:02.9]} 64. Kf5 {[%clk 0:00:08.7]} 64... Nxf3
{[%clk 0:00:02.9]} 65. Kg6 {[%clk 0:00:09.1]} 65... Ne5+ {[%clk 0:00:02.9]} 66.
Kxh5 {[%clk 0:00:07.1]} 66... Ke6 {[%clk 0:00:03.2]} 67. Kg5 {[%clk 0:00:08]}
67... Kf7 {[%clk 0:00:02.7]} 68. h5 {[%clk 0:00:08]} 68... Nd7 {[%clk
0:00:02.9]} 69. h6 {[%clk 0:00:07.8]} 69... Nxf6 {[%clk 0:00:03.3]} 70. Kf5
{[%clk 0:00:07.2]} 70... Nh7 {[%clk 0:00:03]} 71. Kg4 {[%clk 0:00:07.1]} 71...
Kg6 {[%clk 0:00:03.2]} 72. Kh4 {[%clk 0:00:08]} 72... Kxh6 {[%clk 0:00:03.8]}
1/2-1/2

[Event "Early-Titled-Tuesday-Blitz-May-07-2024"]
[Site "Chess.com"]
[Date "2024.05.07"]
[Round "11"]
[White "ChainedDowntohell"]
[Black "ValentinDragnev"]
[Result "0-1"]
[WhiteElo "2592"]
[BlackElo "2730"]
[TimeControl "180+1"]
[EndTime "10:16:10 PDT"]
[Termination "ValentinDragnev won on time"]

1. d4 {[%clk 0:03:00.9]} 1... d5 {[%clk 0:02:56.3]} 2. Nf3 {[%clk 0:03:01.3]}
2... c6 {[%clk 0:02:55.8]} 3. e3 {[%clk 0:02:59.2]} 3... Nf6 {[%clk 0:02:53.8]}
4. c4 {[%clk 0:02:57.8]} 4... Bg4 {[%clk 0:02:52.9]} 5. h3 {[%clk 0:02:56.5]}
5... Bxf3 {[%clk 0:02:53.2]} 6. Qxf3 {[%clk 0:02:57.4]} 6... Nbd7 {[%clk
0:02:54.1]} 7. Nc3 {[%clk 0:02:55.6]} 7... e6 {[%clk 0:02:54.1]} 8. Bd2 {[%clk
0:02:52.8]} 8... Bb4 {[%clk 0:02:52.9]} 9. Bd3 {[%clk 0:02:52]} 9... O-O {[%clk
0:02:45.4]} 10. O-O {[%clk 0:02:50.7]} 10... dxc4 {[%clk 0:02:41.6]} 11. Bxc4
{[%clk 0:02:50.2]} 11... e5 {[%clk 0:02:42.3]} 12. Rae1 {[%clk 0:02:35.1]} 12...
exd4 {[%clk 0:02:36.8]} 13. exd4 {[%clk 0:02:35]} 13... Nb6 {[%clk 0:02:37.5]}
14. Bb3 {[%clk 0:02:29.4]} 14... Qxd4 {[%clk 0:02:37.9]} 15. Bf4 {[%clk
0:02:19.5]} 15... Rfe8 {[%clk 0:02:17.7]} 16. Rxe8+ {[%clk 0:02:18.7]} 16...
Rxe8 {[%clk 0:02:15]} 17. Rd1 {[%clk 0:02:18.3]} 17... Qc5 {[%clk 0:02:14.9]}
18. Bd6 {[%clk 0:01:30.5]} 18... Qa5 {[%clk 0:02:11.8]} 19. Bc7 {[%clk
0:01:30.4]} 19... Bxc3 {[%clk 0:01:57.5]} 20. bxc3 {[%clk 0:01:30]} 20... h6
{[%clk 0:01:48]} 21. g4 {[%clk 0:01:29.5]} 21... Qc5 {[%clk 0:01:43.5]} 22. Bd6
{[%clk 0:01:24.8]} 22... Qb5 {[%clk 0:01:43.8]} 23. Kg2 {[%clk 0:01:18.9]} 23...
a5 {[%clk 0:01:32.1]} 24. Rb1 {[%clk 0:01:06.3]} 24... Qa6 {[%clk 0:01:08.5]}
25. Bc2 {[%clk 0:00:52.7]} 25... Nc4 {[%clk 0:01:07.3]} 26. Rd1 {[%clk 0:00:34]}
26... Nxd6 {[%clk 0:00:54]} 27. Rxd6 {[%clk 0:00:34.9]} 27... Qc4 {[%clk
0:00:54.6]} 28. Bb3 {[%clk 0:00:27]} 28... Qc5 {[%clk 0:00:45.5]} 29. Rd7 {[%clk
0:00:26]} 29... Rf8 {[%clk 0:00:13.9]} 30. Rxb7 {[%clk 0:00:25.7]} 30... Nd5
{[%clk 0:00:11]} 31. h4 {[%clk 0:00:14.6]} 31... a4 {[%clk 0:00:05.7]} 32. Bxa4
{[%clk 0:00:14.2]} 32... Nxc3 {[%clk 0:00:04.1]} 33. Bxc6 {[%clk 0:00:10.2]}
33... Qd4 {[%clk 0:00:02.4]} 34. a3 {[%clk 0:00:09]} 34... Qd2 {[%clk
0:00:01.7]} 35. a4 {[%clk 0:00:08.3]} 35... Qd4 {[%clk 0:00:01.5]} 36. a5 {[%clk
0:00:07.7]} 36... Qc5 {[%clk 0:00:00.4]} 37. a6 {[%clk 0:00:07.4]} 37... Nd1
{[%clk 0:00:00.4]} 38. a7 {[%clk 0:00:06.1]} 38... Nxf2 {[%clk 0:00:00.5]} 39.
Qxf2 {[%clk 0:00:05.1]} 39... Qxc6+ {[%clk 0:00:00.5]} 40. Qf3 {[%clk 0:00:06]}
40... Qc5 {[%clk 0:00:01.1]} 41. Kg3 {[%clk 0:00:04.4]} 41... Qc2 {[%clk
0:00:01.7]} 42. Kh3 {[%clk 0:00:04.4]} 42... Qc5 {[%clk 0:00:02.3]} 43. Kg3
{[%clk 0:00:03.9]} 43... Qc1 {[%clk 0:00:02.9]} 44. Kh3 {[%clk 0:00:03.7]} 44...
Qc5 {[%clk 0:00:03.6]} 45. Kg2 {[%clk 0:00:03.7]} 45... Qd6 {[%clk 0:00:04.3]}
46. Kh3 {[%clk 0:00:03.2]} 46... Qd2 {[%clk 0:00:04.9]} 47. Kg3 {[%clk
0:00:02.9]} 47... Qd6+ {[%clk 0:00:05.6]} 48. Kg2 {[%clk 0:00:02.9]} 48... Qa6
{[%clk 0:00:06.5]} 49. Kg3 {[%clk 0:00:03]} 49... Qa2 {[%clk 0:00:07.2]} 50. h5
{[%clk 0:00:03.3]} 50... Qa4 {[%clk 0:00:06.9]} 51. Qd5 {[%clk 0:00:03.2]} 51...
Qa3+ {[%clk 0:00:06.7]} 52. Kf4 {[%clk 0:00:03.3]} 52... Qa4+ {[%clk 0:00:06.8]}
53. Kf3 {[%clk 0:00:03.3]} 53... Qa3+ {[%clk 0:00:06.8]} 54. Kg2 {[%clk
0:00:03.6]} 54... Qa6 {[%clk 0:00:06.5]} 55. Rd7 {[%clk 0:00:02.4]} 55... Qe2+
{[%clk 0:00:06.5]} 56. Kg3 {[%clk 0:00:02.6]} 56... Qe3+ {[%clk 0:00:07]} 57.
Qf3 {[%clk 0:00:02.6]} 57... Qe1+ {[%clk 0:00:06.9]} 58. Kh3 {[%clk 0:00:02.4]}
58... Qa1 {[%clk 0:00:06]} 59. a8=Q {[%clk 0:00:01.7]} 59... Qxa8 {[%clk
0:00:05.9]} 60. Qxa8 {[%clk 0:00:01.7]} 60... Rxa8 {[%clk 0:00:06.8]} 61. Kg3
{[%clk 0:00:02.4]} 61... Ra3+ {[%clk 0:00:07.2]} 62. Kf4 {[%clk 0:00:01.9]}
62... Ra4+ {[%clk 0:00:07.9]} 63. Kf3 {[%clk 0:00:02]} 63... Ra8 {[%clk
0:00:08.8]} 64. Rc7 {[%clk 0:00:02.2]} 64... Rf8 {[%clk 0:00:09.4]} 65. Kg3
{[%clk 0:00:02.2]} 65... Kh7 {[%clk 0:00:10]} 66. Rb7 {[%clk 0:00:01.9]} 66...
f5 {[%clk 0:00:10.6]} 67. gxf5 {[%clk 0:00:02.1]} 67... Rxf5 {[%clk 0:00:11.5]}
68. Kg4 {[%clk 0:00:02.3]} 68... Rg5+ {[%clk 0:00:11.9]} 69. Kh4 {[%clk
0:00:02.8]} 69... Kg8 {[%clk 0:00:12.8]} 70. Ra7 {[%clk 0:00:03]} 70... Kf8
{[%clk 0:00:13.5]} 71. Rb7 {[%clk 0:00:03.3]} 71... Rf5 {[%clk 0:00:13.4]} 72.
Ra7 {[%clk 0:00:03.3]} 72... Rf4+ {[%clk 0:00:13.7]} 73. Kg3 {[%clk 0:00:00.8]}
73... Rf7 {[%clk 0:00:14.6]} 74. Kg4 {[%clk 0:00:01.6]} 74... Rxa7 {[%clk
0:00:14.4]} 0-1